[Event "*** Titled Tuesday Blitz"]
[Site "Chess.com"]
[Date "2021.03.09"]
[Round "10"]
[White "Konavets"]
[Black "Firouzja2003"]
[Result "0-1"]
[WhiteElo "2929"]
[BlackElo "3147"]
[TimeControl "180+1"]
[EndTime "12:00:17 PST"]
[Termination "Firouzja2003 won by resignation"]

1. e4 {[%clk 0:03:00.9]} 1... c5 {[%clk 0:02:57.8]} 2. Nf3 {[%clk 0:03:01]} 2...
d6 {[%clk 0:02:58.2]} 3. d4 {[%clk 0:03:01]} 3... cxd4 {[%clk 0:02:59.1]} 4.
Nxd4 {[%clk 0:03:01.8]} 4... Nf6 {[%clk 0:02:59.8]} 5. Nc3 {[%clk 0:03:01.6]}
5... a6 {[%clk 0:03:00.5]} 6. Bc4 {[%clk 0:02:58.2]} 6... e6 {[%clk 0:03:00.2]}
7. Bb3 {[%clk 0:02:58.1]} 7... Nbd7 {[%clk 0:03:00.6]} 8. g4 {[%clk 0:02:57.3]}
8... Nc5 {[%clk 0:02:46.6]} 9. Qe2 {[%clk 0:02:56.2]} 9... h6 {[%clk 0:02:42.2]}
10. Rg1 {[%clk 0:02:56.1]} 10... b5 {[%clk 0:02:37.8]} 11. f3 {[%clk 0:02:47.8]}
11... Bd7 {[%clk 0:02:32.9]} 12. a3 {[%clk 0:02:38.8]} 12... g6 {[%clk
0:02:20.8]} 13. f4 {[%clk 0:02:09.2]} 13... Qb6 {[%clk 0:02:04]} 14. Be3 {[%clk
0:01:43.6]} 14... Qb7 {[%clk 0:02:03.6]} 15. e5 {[%clk 0:01:31.9]} 15... dxe5
{[%clk 0:02:04.5]} 16. fxe5 {[%clk 0:01:31.4]} 16... Nfe4 {[%clk 0:02:04.9]} 17.
Nxe4 {[%clk 0:01:20.4]} 17... Qxe4 {[%clk 0:02:05.8]} 18. O-O-O {[%clk
0:01:20.5]} 18... Rc8 {[%clk 0:02:00.1]} 19. Kb1 {[%clk 0:01:14.2]} 19... Bg7
{[%clk 0:01:57.8]} 20. Qf2 {[%clk 0:00:42.3]} 20... Qxe5 {[%clk 0:01:47.6]} 21.
Bf4 {[%clk 0:00:38.5]} 21... Qf6 {[%clk 0:01:43.2]} 22. Qe3 {[%clk 0:00:36.2]}
22... Nxb3 {[%clk 0:01:16.3]} 23. cxb3 {[%clk 0:00:34.3]} 23... e5 {[%clk
0:01:15.4]} 24. Rde1 {[%clk 0:00:27.8]} 24... O-O {[%clk 0:01:07.8]} 25. Bxe5
{[%clk 0:00:28]} 25... Qxe5 {[%clk 0:01:07.4]} 26. Qxe5 {[%clk 0:00:28.9]} 26...
Bxe5 {[%clk 0:01:08.2]} 27. Rxe5 {[%clk 0:00:29.8]} 27... Rfe8 {[%clk
0:01:08.9]} 28. Rd5 {[%clk 0:00:30.4]} 28... Rc7 {[%clk 0:01:06.6]} 29. Rd6
{[%clk 0:00:30.6]} 29... Re4 {[%clk 0:00:58.3]} 30. h3 {[%clk 0:00:29.7]} 30...
Re3 {[%clk 0:00:55.1]} 31. h4 {[%clk 0:00:23.1]} 31... Re4 {[%clk 0:00:41.6]}
32. h5 {[%clk 0:00:23.5]} 32... g5 {[%clk 0:00:42]} 33. Nf5 {[%clk 0:00:18.8]}
33... Be6 {[%clk 0:00:40]} 34. Nxh6+ {[%clk 0:00:17.6]} 34... Kh7 {[%clk
0:00:40.1]} 35. Nf5 {[%clk 0:00:17.6]} 35... Rxg4 {[%clk 0:00:39.5]} 36. Rf1
{[%clk 0:00:17.2]} 36... Re4 {[%clk 0:00:31.7]} 37. Nd4 {[%clk 0:00:15.3]} 37...
g4 {[%clk 0:00:23.2]} 38. Nxe6 {[%clk 0:00:11.1]} 38... fxe6 {[%clk 0:00:23]}
39. Rf6 {[%clk 0:00:11.6]} 39... g3 {[%clk 0:00:20.5]} 40. Rg6 {[%clk
0:00:08.5]} 40... Rg7 {[%clk 0:00:19.3]} 41. Rd3 {[%clk 0:00:07]} 41... Rg4
{[%clk 0:00:17.1]} 42. Rxe6 {[%clk 0:00:03.3]} 42... g2 {[%clk 0:00:16.7]} 43.
Rd1 {[%clk 0:00:04]} 43... g1=Q {[%clk 0:00:15.5]} 44. Rxg1 {[%clk 0:00:04.5]}
44... Rxg1+ {[%clk 0:00:16.4]} 45. Ka2 {[%clk 0:00:04.8]} 45... Ra7 {[%clk
0:00:15.7]} 46. Re5 {[%clk 0:00:02.6]} 46... Rh1 {[%clk 0:00:15.4]} 47. b4
{[%clk 0:00:02.7]} 47... Kh6 {[%clk 0:00:15.7]} 48. Re6+ {[%clk 0:00:03.1]}
48... Kxh5 {[%clk 0:00:15.8]} 49. Re8 {[%clk 0:00:04]} 49... Rf1 {[%clk
0:00:15.4]} 50. Re5+ {[%clk 0:00:03.6]} 50... Kg6 {[%clk 0:00:15.7]} 51. Rc5
{[%clk 0:00:04.1]} 51... Rf5 {[%clk 0:00:16]} 52. Rc6+ {[%clk 0:00:04.5]} 52...
Kf7 {[%clk 0:00:16.7]} 53. Rb6 {[%clk 0:00:04.7]} 53... Rf6 {[%clk 0:00:17]} 54.
Rb8 {[%clk 0:00:04.8]} 54... Ke7 {[%clk 0:00:17.6]} 55. Kb3 {[%clk 0:00:04.8]}
55... Rd6 {[%clk 0:00:17.8]} 56. Ka2 {[%clk 0:00:05.2]} 56... Kd7 {[%clk
0:00:18.3]} 57. Rh8 {[%clk 0:00:05.2]} 57... Kc6 {[%clk 0:00:18.4]} 58. Rh5
{[%clk 0:00:05.2]} 58... Rad7 {[%clk 0:00:18.4]} 59. Rc5+ {[%clk 0:00:05.3]}
59... Kb6 {[%clk 0:00:18.9]} 60. Rh5 {[%clk 0:00:06.2]} 60... Re6 {[%clk
0:00:19.2]} 61. Rh8 {[%clk 0:00:06.3]} 61... Rd2 {[%clk 0:00:19.2]} 62. Rh4
{[%clk 0:00:03]} 62... Ree2 {[%clk 0:00:18.9]} 63. Rh7 {[%clk 0:00:03.4]} 0-1

[Event "*** Titled Tuesday Blitz"]
[Site "Chess.com"]
[Date "2021.03.09"]
[Round "10"]
[White "eCztery"]
[Black "elohunter1999"]
[Result "0-1"]
[WhiteElo "2460"]
[BlackElo "2635"]
[TimeControl "180+1"]
[EndTime "12:00:17 PST"]
[Termination "elohunter1999 won by resignation"]

1. e4 {[%clk 0:02:43.5]} 1... c5 {[%clk 0:02:59.7]} 2. Nf3 {[%clk 0:02:40.8]}
2... g6 {[%clk 0:02:59.8]} 3. h4 {[%clk 0:02:33.8]} 3... h5 {[%clk 0:02:57.8]}
4. d4 {[%clk 0:02:31.2]} 4... cxd4 {[%clk 0:02:57.2]} 5. Qxd4 {[%clk 0:02:29.8]}
5... Nf6 {[%clk 0:02:56.4]} 6. Nc3 {[%clk 0:02:28.9]} 6... Nc6 {[%clk
0:02:55.9]} 7. Qa4 {[%clk 0:02:27.7]} 7... d6 {[%clk 0:02:54.1]} 8. Bg5 {[%clk
0:02:20.5]} 8... Bg7 {[%clk 0:02:52.5]} 9. O-O-O {[%clk 0:02:17.2]} 9... Bd7
{[%clk 0:02:52]} 10. Bb5 {[%clk 0:01:54.4]} 10... a6 {[%clk 0:02:51.3]} 11. Bxc6
{[%clk 0:01:53.2]} 11... Bxc6 {[%clk 0:02:52.2]} 12. Qb4 {[%clk 0:01:46.9]}
12... Ng4 {[%clk 0:02:47.2]} 13. Nd5 {[%clk 0:01:36.7]} 13... f6 {[%clk
0:02:36.9]} 14. Be3 {[%clk 0:01:27.6]} 14... O-O {[%clk 0:02:33]} 15. Bb6 {[%clk
0:01:24.6]} 15... Qd7 {[%clk 0:02:27.8]} 16. Nc7 {[%clk 0:01:18.6]} 16... Rac8
{[%clk 0:02:26]} 17. Qb3+ {[%clk 0:01:11.9]} 17... Kh7 {[%clk 0:02:24.4]} 18.
Ne6 {[%clk 0:01:12.1]} 18... Ba4 {[%clk 0:02:17.7]} 19. Nxf8+ {[%clk 0:01:01]}
19... Bxf8 {[%clk 0:01:53.8]} 20. Qf7+ {[%clk 0:01:00.3]} 20... Bg7 {[%clk
0:01:53.9]} 21. Nd4 {[%clk 0:00:39.7]} 21... Ne5 {[%clk 0:01:37.7]} 22. Qd5
{[%clk 0:00:23.5]} 22... e6 {[%clk 0:01:36]} 23. Qxe6 {[%clk 0:00:23]} 23...
Qxe6 {[%clk 0:01:19.2]} 24. Nxe6 {[%clk 0:00:23.9]} 24... Bxc2 {[%clk
0:01:20.1]} 25. Rxd6 {[%clk 0:00:15.4]} 25... Ba4+ {[%clk 0:00:43.4]} 26. Bc7
{[%clk 0:00:09.9]} 26... Bd7 {[%clk 0:00:36.8]} 27. f4 {[%clk 0:00:09.2]} 27...
Bxe6 {[%clk 0:00:34.2]} 28. fxe5 {[%clk 0:00:09.6]} 28... Rxc7+ {[%clk
0:00:34.3]} 29. Kb1 {[%clk 0:00:10]} 29... Re7 {[%clk 0:00:32.8]} 30. exf6
{[%clk 0:00:09.5]} 30... Bxf6 {[%clk 0:00:33.7]} 31. Rf1 {[%clk 0:00:08.2]}
31... Be5 {[%clk 0:00:33.8]} 32. Rb6 {[%clk 0:00:07.3]} 32... Bc4 {[%clk
0:00:27.6]} 33. Rd1 {[%clk 0:00:05.7]} 33... Be2 {[%clk 0:00:24.8]} 34. Rd2
{[%clk 0:00:05.3]} 34... Bg4 {[%clk 0:00:24.3]} 35. Rb3 {[%clk 0:00:04.7]} 35...
b5 {[%clk 0:00:23.4]} 36. Rbd3 {[%clk 0:00:04.7]} 36... Rc7 {[%clk 0:00:22.5]}
37. Rc2 {[%clk 0:00:04.3]} 37... Rf7 {[%clk 0:00:21.4]} 38. a3 {[%clk
0:00:03.4]} 38... Be6 {[%clk 0:00:21]} 39. Rd1 {[%clk 0:00:02.5]} 39... Bb3
{[%clk 0:00:20.7]} 40. Rcd2 {[%clk 0:00:02.4]} 40... Bxd1 {[%clk 0:00:20.6]} 41.
Rxd1 {[%clk 0:00:03.3]} 41... Rf2 {[%clk 0:00:21]} 42. Rd5 {[%clk 0:00:04.2]}
42... Rxb2+ {[%clk 0:00:19.5]} 43. Kc1 {[%clk 0:00:04.4]} 43... Bg7 {[%clk
0:00:19.6]} 44. Rd6 {[%clk 0:00:04]} 44... Rxg2 {[%clk 0:00:19.4]} 45. Rxa6
{[%clk 0:00:04.9]} 45... Re2 {[%clk 0:00:18.9]} 46. Rb6 {[%clk 0:00:04.6]} 46...
Rxe4 {[%clk 0:00:19.1]} 47. Rxb5 {[%clk 0:00:05]} 47... Rxh4 {[%clk 0:00:19.8]}
48. a4 {[%clk 0:00:04.5]} 48... Rxa4 {[%clk 0:00:19.7]} 49. Rb8 {[%clk
0:00:03.6]} 49... Rg4 {[%clk 0:00:20]} 50. Kd2 {[%clk 0:00:04.5]} 50... h4
{[%clk 0:00:20.3]} 51. Ke3 {[%clk 0:00:05.2]} 51... h3 {[%clk 0:00:20.8]} 52.
Rb1 {[%clk 0:00:04.7]} 52... h2 {[%clk 0:00:20.3]} 53. Kf3 {[%clk 0:00:05.6]}
53... Rg1 {[%clk 0:00:20.2]} 54. Rb3 {[%clk 0:00:02.3]} 54... h1=Q+ {[%clk
0:00:20.2]} 55. Kf4 {[%clk 0:00:02.4]} 55... Qh4+ {[%clk 0:00:19.5]} 56. Kf3
{[%clk 0:00:01.6]} 56... Rg3+ {[%clk 0:00:19.5]} 57. Ke2 {[%clk 0:00:01.9]}
57... Qh2+ {[%clk 0:00:19.9]} 0-1

[Event "*** Titled Tuesday Blitz"]
[Site "Chess.com"]
[Date "2021.03.09"]
[Round "10"]
[White "NikolaN98"]
[Black "Chessmasterzt"]
[Result "1-0"]
[WhiteElo "2547"]
[BlackElo "2626"]
[TimeControl "180+1"]
[EndTime "12:00:20 PST"]
[Termination "NikolaN98 won by checkmate"]

1. e4 {[%clk 0:03:00.9]} 1... c5 {[%clk 0:02:59.9]} 2. Nc3 {[%clk 0:03:00.6]}
2... Nc6 {[%clk 0:02:58.8]} 3. f4 {[%clk 0:03:00.6]} 3... g6 {[%clk 0:02:56.5]}
4. Nf3 {[%clk 0:03:00.5]} 4... Bg7 {[%clk 0:02:56.3]} 5. Bb5 {[%clk 0:03:00.5]}
5... Nd4 {[%clk 0:02:51.9]} 6. O-O {[%clk 0:02:59.8]} 6... Nxb5 {[%clk
0:02:38.8]} 7. Nxb5 {[%clk 0:02:59.8]} 7... Nf6 {[%clk 0:02:34.5]} 8. d3 {[%clk
0:02:57.2]} 8... O-O {[%clk 0:02:28.9]} 9. Qe1 {[%clk 0:02:56.4]} 9... d6 {[%clk
0:02:18]} 10. Qh4 {[%clk 0:02:53.5]} 10... a6 {[%clk 0:01:59.1]} 11. Nc3 {[%clk
0:02:52.8]} 11... b5 {[%clk 0:01:59.3]} 12. f5 {[%clk 0:02:51.7]} 12... b4
{[%clk 0:01:47.3]} 13. Ne2 {[%clk 0:02:50.8]} 13... e6 {[%clk 0:01:24.8]} 14.
Bg5 {[%clk 0:02:45.8]} 14... exf5 {[%clk 0:01:05.4]} 15. Ng3 {[%clk 0:02:45]}
15... h6 {[%clk 0:01:00.8]} 16. Bxh6 {[%clk 0:02:43.1]} 16... Ng4 {[%clk
0:00:58.6]} 17. Bg5 {[%clk 0:02:26.9]} 17... f6 {[%clk 0:00:53.9]} 18. exf5
{[%clk 0:02:14.9]} 18... fxg5 {[%clk 0:00:45.8]} 19. Qxg4 {[%clk 0:02:02.6]}
19... gxf5 {[%clk 0:00:43.7]} 20. Qh5 {[%clk 0:01:58.4]} 20... Qf6 {[%clk
0:00:19.5]} 21. Nxg5 {[%clk 0:01:53.1]} 21... Qh6 {[%clk 0:00:19.9]} 22. Qf3
{[%clk 0:01:38.6]} 22... Ra7 {[%clk 0:00:15.8]} 23. Qd5+ {[%clk 0:01:34.3]}
23... Kh8 {[%clk 0:00:16]} 24. Nh3 {[%clk 0:00:54.8]} 24... Bxb2 {[%clk
0:00:11.7]} 25. Rae1 {[%clk 0:00:52.2]} 25... Bd4+ {[%clk 0:00:11.8]} 26. Kh1
{[%clk 0:00:51.9]} 26... Bb7 {[%clk 0:00:11.5]} 27. Re6 {[%clk 0:00:31.6]} 27...
Qxh3 {[%clk 0:00:06.7]} 28. Qxb7 {[%clk 0:00:31.4]} 28... Rxb7 {[%clk
0:00:04.1]} 29. gxh3 {[%clk 0:00:32]} 29... Rbf7 {[%clk 0:00:03.2]} 30. Rxd6
{[%clk 0:00:31.3]} 30... Be5 {[%clk 0:00:03.6]} 31. Rh6+ {[%clk 0:00:28.8]}
31... Kg7 {[%clk 0:00:03.2]} 32. Rxa6 {[%clk 0:00:29.7]} 32... f4 {[%clk
0:00:03.3]} 33. Ne4 {[%clk 0:00:25.9]} 33... f3 {[%clk 0:00:03.7]} 34. Nxc5
{[%clk 0:00:23.3]} 34... Rf6 {[%clk 0:00:03]} 35. Ne6+ {[%clk 0:00:19.7]} 35...
Kh8 {[%clk 0:00:02.1]} 36. Nxf8 {[%clk 0:00:17.7]} 36... Rxa6 {[%clk 0:00:03]}
37. Rxf3 {[%clk 0:00:17.8]} 37... Bd4 {[%clk 0:00:03.2]} 38. Rf4 {[%clk
0:00:15.5]} 38... Bc3 {[%clk 0:00:03]} 39. Nd7 {[%clk 0:00:08.6]} 39... Rxa2
{[%clk 0:00:03.4]} 40. Rf2 {[%clk 0:00:07]} 40... Ra1+ {[%clk 0:00:03.1]} 41.
Kg2 {[%clk 0:00:07]} 41... Re1 {[%clk 0:00:03.6]} 42. Nc5 {[%clk 0:00:05.8]}
42... Kg7 {[%clk 0:00:04.1]} 43. Ne4 {[%clk 0:00:06.1]} 43... Bd4 {[%clk
0:00:04.6]} 44. Rd2 {[%clk 0:00:04.5]} 44... Rg1+ {[%clk 0:00:05]} 45. Kf3
{[%clk 0:00:04.8]} 45... Rf1+ {[%clk 0:00:05.5]} 46. Kg4 {[%clk 0:00:05]} 46...
Rg1+ {[%clk 0:00:05.9]} 47. Kf5 {[%clk 0:00:05.4]} 47... Rf1+ {[%clk 0:00:06.1]}
48. Ke6 {[%clk 0:00:05.8]} 48... Rf3 {[%clk 0:00:06.4]} 49. Kd5 {[%clk
0:00:05.8]} 49... Rxh3 {[%clk 0:00:06.1]} 50. Kxd4 {[%clk 0:00:05.7]} 50... Rxh2
{[%clk 0:00:06.7]} 51. Rxh2 {[%clk 0:00:05.5]} 51... b3 {[%clk 0:00:07.4]} 52.
Rg2+ {[%clk 0:00:06.3]} 52... Kf7 {[%clk 0:00:07.2]} 53. cxb3 {[%clk 0:00:07.2]}
53... Ke6 {[%clk 0:00:08.1]} 54. b4 {[%clk 0:00:07.5]} 54... Kf5 {[%clk
0:00:09]} 55. Rc2 {[%clk 0:00:07.9]} 55... Kf4 {[%clk 0:00:09.9]} 56. Nd6 {[%clk
0:00:08.4]} 56... Kf3 {[%clk 0:00:10.8]} 57. Nc8 {[%clk 0:00:09.3]} 57... Kg4
{[%clk 0:00:11.7]} 58. b5 {[%clk 0:00:10.1]} 58... Kf4 {[%clk 0:00:12.6]} 59. b6
{[%clk 0:00:11]} 59... Kg5 {[%clk 0:00:13.5]} 60. b7 {[%clk 0:00:11.9]} 60...
Kf6 {[%clk 0:00:14.4]} 61. b8=Q {[%clk 0:00:12.8]} 61... Ke6 {[%clk 0:00:15.3]}
62. Qd6+ {[%clk 0:00:13.2]} 62... Kf7 {[%clk 0:00:15.3]} 63. Rf2+ {[%clk
0:00:13.2]} 63... Ke8 {[%clk 0:00:16.2]} 64. Rf8# {[%clk 0:00:11.9]} 1-0

[Event "*** Titled Tuesday Blitz"]
[Site "Chess.com"]
[Date "2021.03.09"]
[Round "10"]
[White "WilliamSchill"]
[Black "Kale36"]
[Result "0-1"]
[WhiteElo "2056"]
[BlackElo "2310"]
[TimeControl "180+1"]
[EndTime "12:00:23 PST"]
[Termination "Kale36 won on time"]

1. e4 {[%clk 0:03:00.9]} 1... Nc6 {[%clk 0:02:59.3]} 2. Nf3 {[%clk 0:03:00.3]}
2... d6 {[%clk 0:02:59.2]} 3. d4 {[%clk 0:03:00.1]} 3... g6 {[%clk 0:02:59.5]}
4. d5 {[%clk 0:02:57.2]} 4... Ne5 {[%clk 0:02:55.8]} 5. Nd4 {[%clk 0:02:57.2]}
5... c5 {[%clk 0:02:55.4]} 6. dxc6 {[%clk 0:02:50]} 6... Nxc6 {[%clk 0:02:55.2]}
7. Nc3 {[%clk 0:02:49]} 7... Bg7 {[%clk 0:02:54.2]} 8. Be3 {[%clk 0:02:49.1]}
8... Nf6 {[%clk 0:02:53]} 9. f3 {[%clk 0:02:45.3]} 9... O-O {[%clk 0:02:52.3]}
10. Qd2 {[%clk 0:02:45.5]} 10... Nxd4 {[%clk 0:02:44.9]} 11. Bxd4 {[%clk
0:02:45.2]} 11... Be6 {[%clk 0:02:45.2]} 12. Be2 {[%clk 0:02:39.2]} 12... a6
{[%clk 0:02:28.2]} 13. O-O {[%clk 0:02:32.6]} 13... b5 {[%clk 0:02:28.1]} 14.
Rad1 {[%clk 0:02:31.9]} 14... Rc8 {[%clk 0:02:25.8]} 15. Nd5 {[%clk 0:02:12.6]}
15... Bxd5 {[%clk 0:01:42.9]} 16. exd5 {[%clk 0:02:11.7]} 16... Qc7 {[%clk
0:01:37]} 17. c3 {[%clk 0:02:05]} 17... Nd7 {[%clk 0:01:23.3]} 18. Bxg7 {[%clk
0:02:03.4]} 18... Kxg7 {[%clk 0:01:24.2]} 19. f4 {[%clk 0:01:55.8]} 19... Qc5+
{[%clk 0:01:19]} 20. Kh1 {[%clk 0:01:55.1]} 20... Nf6 {[%clk 0:01:19.3]} 21. Bf3
{[%clk 0:01:44.3]} 21... Qc4 {[%clk 0:01:07.7]} 22. a3 {[%clk 0:01:38.6]} 22...
a5 {[%clk 0:01:07.4]} 23. f5 {[%clk 0:01:35.3]} 23... b4 {[%clk 0:01:05.2]} 24.
axb4 {[%clk 0:01:34.9]} 24... axb4 {[%clk 0:01:06.1]} 25. fxg6 {[%clk
0:01:33.3]} 25... hxg6 {[%clk 0:01:05.9]} 26. Rfe1 {[%clk 0:01:16.3]} 26... Rc7
{[%clk 0:01:04.4]} 27. Re3 {[%clk 0:01:04]} 27... Rh8 {[%clk 0:01:00.7]} 28.
Rde1 {[%clk 0:00:49.7]} 28... Qf4 {[%clk 0:00:53.4]} 29. h3 {[%clk 0:00:38.3]}
29... bxc3 {[%clk 0:00:52.8]} 30. bxc3 {[%clk 0:00:37.6]} 30... Nh5 {[%clk
0:00:25.9]} 31. Bxh5 {[%clk 0:00:32.1]} 31... Rxh5 {[%clk 0:00:26]} 32. Qd3
{[%clk 0:00:16.9]} 32... Re5 {[%clk 0:00:22]} 33. Rxe5 {[%clk 0:00:15.2]} 33...
dxe5 {[%clk 0:00:22.9]} 34. d6 {[%clk 0:00:12]} 34... exd6 {[%clk 0:00:21]} 35.
Qxd6 {[%clk 0:00:12]} 35... Rxc3 {[%clk 0:00:17.4]} 36. Qxe5+ {[%clk 0:00:11.8]}
36... Qxe5 {[%clk 0:00:17.3]} 37. Rxe5 {[%clk 0:00:11.9]} 37... Rc2 {[%clk
0:00:17.4]} 38. Kh2 {[%clk 0:00:11.5]} 38... f6 {[%clk 0:00:17.2]} 39. Re7+
{[%clk 0:00:11.2]} 39... Kh6 {[%clk 0:00:17.4]} 40. Kg3 {[%clk 0:00:11.3]} 40...
f5 {[%clk 0:00:17.6]} 41. Kf3 {[%clk 0:00:10.5]} 41... Kg5 {[%clk 0:00:17.6]}
42. Ra7 {[%clk 0:00:10.5]} 42... Rc3+ {[%clk 0:00:17]} 43. Kf2 {[%clk
0:00:09.8]} 43... f4 {[%clk 0:00:14]} 44. Ra5+ {[%clk 0:00:07.8]} 44... Kf6
{[%clk 0:00:11.7]} 45. Ra4 {[%clk 0:00:07.5]} 45... g5 {[%clk 0:00:11.7]} 46.
Ra5 {[%clk 0:00:07.2]} 46... Kg6 {[%clk 0:00:11.8]} 47. Rd5 {[%clk 0:00:05.8]}
47... Kh5 {[%clk 0:00:11.9]} 48. Re5 {[%clk 0:00:05.7]} 48... Ra3 {[%clk
0:00:12]} 49. Rd5 {[%clk 0:00:05.5]} 49... Kh4 {[%clk 0:00:12.3]} 50. Rc5 {[%clk
0:00:05.1]} 50... Ra2+ {[%clk 0:00:12.7]} 51. Kf3 {[%clk 0:00:04.1]} 51... Ra1
{[%clk 0:00:11.4]} 52. Rc8 {[%clk 0:00:02.9]} 52... Rf1+ {[%clk 0:00:11]} 53.
Ke2 {[%clk 0:00:02.8]} 53... Ra1 {[%clk 0:00:10.7]} 54. Kf3 {[%clk 0:00:02.6]}
54... Ra3+ {[%clk 0:00:10.2]} 55. Kf2 {[%clk 0:00:02.5]} 55... Kh5 {[%clk
0:00:10.5]} 56. Rh8+ {[%clk 0:00:01.5]} 56... Kg6 {[%clk 0:00:10.7]} 57. Rg8+
{[%clk 0:00:01.9]} 57... Kf7 {[%clk 0:00:10.9]} 58. Rb8 {[%clk 0:00:01.4]} 58...
Kf6 {[%clk 0:00:10.8]} 59. Rb5 {[%clk 0:00:01.3]} 59... Kg6 {[%clk 0:00:10.7]}
60. Kf1 {[%clk 0:00:01.3]} 60... Rc3 {[%clk 0:00:10.8]} 61. Kf2 {[%clk
0:00:01.6]} 61... Rc2+ {[%clk 0:00:10.8]} 62. Kf3 {[%clk 0:00:01.7]} 62... Rc3+
{[%clk 0:00:11.4]} 0-1

[Event "*** Titled Tuesday Blitz"]
[Site "Chess.com"]
[Date "2021.03.09"]
[Round "10"]
[White "SlavenPastar"]
[Black "Sjakkerntobi"]
[Result "0-1"]
[WhiteElo "2519"]
[BlackElo "2391"]
[TimeControl "180+1"]
[EndTime "12:00:28 PST"]
[Termination "Sjakkerntobi won by resignation"]

1. b3 {[%clk 0:03:00.9]} 1... e5 {[%clk 0:02:58.9]} 2. Bb2 {[%clk 0:03:01.3]}
2... Nc6 {[%clk 0:02:59.5]} 3. Nf3 {[%clk 0:03:01.7]} 3... e4 {[%clk 0:02:58.8]}
4. Nd4 {[%clk 0:03:01.6]} 4... Nxd4 {[%clk 0:02:59.2]} 5. Bxd4 {[%clk
0:03:02.4]} 5... d5 {[%clk 0:02:58.6]} 6. e3 {[%clk 0:03:00.8]} 6... Nf6 {[%clk
0:02:57.6]} 7. Bxf6 {[%clk 0:02:59.1]} 7... Qxf6 {[%clk 0:02:57.2]} 8. Nc3
{[%clk 0:02:59.7]} 8... c6 {[%clk 0:02:57.4]} 9. Be2 {[%clk 0:02:59.4]} 9... Bd6
{[%clk 0:02:57.1]} 10. O-O {[%clk 0:02:54.6]} 10... Qe5 {[%clk 0:02:54.4]} 11.
g3 {[%clk 0:02:54.4]} 11... h5 {[%clk 0:02:54.4]} 12. d4 {[%clk 0:02:50.6]}
12... exd3 {[%clk 0:02:55.3]} 13. Qxd3 {[%clk 0:02:48.1]} 13... Bf5 {[%clk
0:02:52.7]} 14. Qd4 {[%clk 0:02:35.4]} 14... Qxd4 {[%clk 0:02:48.1]} 15. exd4
{[%clk 0:02:36.3]} 15... Bxc2 {[%clk 0:02:48.3]} 16. Rfe1 {[%clk 0:02:36.4]}
16... Kf8 {[%clk 0:02:31.5]} 17. Rac1 {[%clk 0:02:20.7]} 17... Bg6 {[%clk
0:02:30.6]} 18. h4 {[%clk 0:02:14.2]} 18... Bb4 {[%clk 0:02:25.7]} 19. Bf3
{[%clk 0:02:06.3]} 19... Re8 {[%clk 0:02:22.2]} 20. Re3 {[%clk 0:02:05.3]} 20...
Rxe3 {[%clk 0:02:21.6]} 21. fxe3 {[%clk 0:02:06.2]} 21... Ke7 {[%clk 0:02:19.7]}
22. Kf2 {[%clk 0:02:03.8]} 22... Kd6 {[%clk 0:02:16.4]} 23. Ne2 {[%clk
0:02:03.5]} 23... Re8 {[%clk 0:02:13.4]} 24. Rd1 {[%clk 0:01:58.4]} 24... Bc2
{[%clk 0:02:08.2]} 25. Rc1 {[%clk 0:01:57.5]} 25... Bh7 {[%clk 0:02:04.2]} 26.
Rd1 {[%clk 0:01:46.1]} 26... Bc2 {[%clk 0:02:03.6]} 27. Rc1 {[%clk 0:01:42.5]}
27... Bf5 {[%clk 0:02:04.1]} 28. Rd1 {[%clk 0:01:39.7]} 28... g6 {[%clk
0:02:02.5]} 29. Nf4 {[%clk 0:01:34.3]} 29... Re7 {[%clk 0:01:55.1]} 30. Be2
{[%clk 0:01:30.2]} 30... a5 {[%clk 0:01:54.1]} 31. Bd3 {[%clk 0:01:26.9]} 31...
Bg4 {[%clk 0:01:49.3]} 32. Be2 {[%clk 0:01:23.5]} 32... Bxe2 {[%clk 0:01:45.9]}
33. Kxe2 {[%clk 0:01:19.9]} 33... Kd7 {[%clk 0:01:41.2]} 34. Kf3 {[%clk
0:01:18.8]} 34... Bd6 {[%clk 0:01:41.1]} 35. Nd3 {[%clk 0:01:18]} 35... b6
{[%clk 0:01:39.8]} 36. Rc1 {[%clk 0:01:16.3]} 36... Re6 {[%clk 0:01:39]} 37. Rc2
{[%clk 0:01:13]} 37... Rf6+ {[%clk 0:01:38.4]} 38. Kg2 {[%clk 0:01:12.2]} 38...
Re6 {[%clk 0:01:36.4]} 39. Kf3 {[%clk 0:01:12.4]} 39... f6 {[%clk 0:01:34.7]}
40. Rc1 {[%clk 0:01:07.7]} 40... g5 {[%clk 0:01:30.7]} 41. hxg5 {[%clk
0:01:05.5]} 41... fxg5 {[%clk 0:01:31.6]} 42. Rh1 {[%clk 0:01:00.5]} 42... Rf6+
{[%clk 0:01:31.5]} 43. Kg2 {[%clk 0:00:59.4]} 43... Rh6 {[%clk 0:01:31.2]} 44.
Nf2 {[%clk 0:00:52.2]} 44... h4 {[%clk 0:01:28.5]} 45. Ng4 {[%clk 0:00:25]}
45... Rh8 {[%clk 0:01:26.8]} 46. gxh4 {[%clk 0:00:18.3]} 46... gxh4 {[%clk
0:01:27.7]} 47. Kh3 {[%clk 0:00:18.3]} 47... c5 {[%clk 0:01:24.3]} 48. Rf1
{[%clk 0:00:17.4]} 48... Ke6 {[%clk 0:00:59.8]} 49. Rf6+ {[%clk 0:00:16.9]}
49... Ke7 {[%clk 0:00:58.9]} 50. Rf5 {[%clk 0:00:17.7]} 50... Ke6 {[%clk
0:00:56.1]} 51. Rf6+ {[%clk 0:00:16.6]} 51... Kd7 {[%clk 0:00:56.4]} 52. Rf5
{[%clk 0:00:15.5]} 52... Re8 {[%clk 0:00:48.7]} 53. Rxd5 {[%clk 0:00:13.7]}
53... Kc6 {[%clk 0:00:46.9]} 54. Rh5 {[%clk 0:00:12.2]} 54... cxd4 {[%clk
0:00:47.2]} 55. exd4 {[%clk 0:00:11.4]} 55... Re2 {[%clk 0:00:45.7]} 56. Ne5+
{[%clk 0:00:06]} 56... Bxe5 {[%clk 0:00:45.4]} 57. Rxe5 {[%clk 0:00:06.1]} 57...
Rxe5 {[%clk 0:00:42.5]} 58. dxe5 {[%clk 0:00:05.8]} 58... Kd5 {[%clk 0:00:43.2]}
59. Kxh4 {[%clk 0:00:06.6]} 59... Kxe5 {[%clk 0:00:43.8]} 60. Kg3 {[%clk
0:00:07.1]} 60... Kd4 {[%clk 0:00:44.5]} 61. Kf4 {[%clk 0:00:07.4]} 61... Kc3
{[%clk 0:00:45.1]} 62. Ke5 {[%clk 0:00:08]} 62... Kb2 {[%clk 0:00:45.8]} 63. Kd5
{[%clk 0:00:08.7]} 63... Kxa2 {[%clk 0:00:46.3]} 64. Kc4 {[%clk 0:00:09.2]}
64... Ka3 {[%clk 0:00:46.4]} 65. Kc3 {[%clk 0:00:06.2]} 65... b5 {[%clk
0:00:46.6]} 66. Kc2 {[%clk 0:00:05.4]} 66... a4 {[%clk 0:00:45.3]} 67. bxa4
{[%clk 0:00:02.7]} 67... Kxa4 {[%clk 0:00:46.2]} 68. Kb2 {[%clk 0:00:02.2]}
68... Kb4 {[%clk 0:00:46.7]} 69. Ka2 {[%clk 0:00:02.4]} 69... Kc3 {[%clk
0:00:46.8]} 70. Kb1 {[%clk 0:00:02.8]} 70... Kb3 {[%clk 0:00:47.1]} 71. Ka1
{[%clk 0:00:03]} 71... b4 {[%clk 0:00:47.4]} 72. Kb1 {[%clk 0:00:03.3]} 72...
Ka3 {[%clk 0:00:46.5]} 73. Ka1 {[%clk 0:00:04.2]} 73... b3 {[%clk 0:00:46.5]}
74. Kb1 {[%clk 0:00:04.6]} 74... b2 {[%clk 0:00:47.4]} 75. Kc2 {[%clk 0:00:05]}
75... Ka2 {[%clk 0:00:48.3]} 76. Kc3 {[%clk 0:00:05.5]} 76... b1=Q {[%clk
0:00:49.2]} 77. Kd4 {[%clk 0:00:06.2]} 77... Qc2 {[%clk 0:00:49]} 78. Ke3 {[%clk
0:00:06]} 78... Qd1 {[%clk 0:00:48.8]} 79. Kf4 {[%clk 0:00:06.9]} 0-1